bitfinex/quotes_BTCUSD_20241101
["timestamp","ask_amount","ask_price","bid_price","bid_amount"]
[1730446765675,0.04314678,69380.0,69378.0,0.023]
[1730446765899,0.18727978,69381.0,69378.0,0.023]
[1730446766345,0.144135,69379.0,69378.0,0.023]
[1730446773156,0.144135,69379.0,69378.0,0.024644]
[1730446778916,0.144135,69379.0,69378.0,0.001644]
[1730446778917,0.19253412,69379.0,69378.0,0.001644]
[1730446780013,0.60788937,69379.0,69378.0,0.001644]
[1730446780634,0.7669813,69379.0,69378.0,0.001644]
[1730446781505,0.58012693,69379.0,69378.0,0.001644]
[1730446781710,0.6878702,69379.0,69378.0,0.001644]
[1730446782257,0.6898702,69379.0,69378.0,0.001644]
[1730446783284,0.6908702,69379.0,69378.0,0.001644]
[1730446783769,0.69082446,69379.0,69378.0,0.001644]
[1730446783987,0.82211375,69379.0,69378.0,0.001644]
[1730446784427,0.58309875,69379.0,69378.0,0.001644]
[1730446784617,0.69082446,69379.0,69378.0,0.001644]
[1730446785544,0.58309875,69379.0,69378.0,0.001644]
[1730446787321,0.57006467,69379.0,69378.0,0.001644]
[1730446791755,0.48389875,69379.0,69378.0,0.001644]
[1730446792195,0.62237605,69379.0,69378.0,0.001644]
[1730446794623,0.48389875,69379.0,69378.0,0.001644]
[1730446795468,0.57006467,69379.0,69378.0,0.001644]
[1730446797277,0.56999438,69379.0,69378.0,0.001644]
[1730446798531,0.48384366,69379.0,69378.0,0.001644]
[1730446800414,0.59153206,69379.0,69378.0,0.001644]
[1730446800632,0.82146423,69379.0,69378.0,0.001644]
[1730446801032,0.82161136,69379.0,69378.0,0.001644]
[1730446801802,0.71386355,69379.0,69378.0,0.001644]
[1730446801978,0.5804555,69379.0,69378.0,0.001644]
[1730446805395,0.58069122,69379.0,69378.0,0.001644]
[1730446805804,0.4064671,69379.0,69378.0,0.001644]
[1730446807517,0.53603841,69379.0,69378.0,0.001644]
[1730446808979,0.66391305,69379.0,69378.0,0.001644]
[1730446809504,0.68466634,69379.0,69378.0,0.001644]
[1730446809750,0.77506634,69379.0,69378.0,0.001644]
[1730446809972,0.99192159,69379.0,69378.0,0.001644]
[1730446811032,1.03672456,69379.0,69378.0,0.001644]
[1730446811458,1.03472456,69379.0,69378.0,0.001644]
[1730446813881,1.03472456,69379.0,69364.0,0.21769576]
[1730446813882,0.144164,69365.0,69364.0,0.21769576]
[1730446814010,0.22249881,69365.0,69364.0,0.21769576]
[1730446814215,0.22249879,69365.0,69364.0,0.21769576]
[1730446814742,0.06481306,69366.0,69363.0,0.02516201]
[1730446814938,0.18737693,69364.0,69363.0,0.02516201]
[1730446815317,0.144167,69364.0,69363.0,0.02516201]
[1730446815522,0.18737905,69364.0,69363.0,0.02516201]
[1730446815922,0.144167,69364.0,69363.0,0.02516201]
[1730446818772,0.17588242,69364.0,69363.0,0.02516201]
[1730446819239,0.17588242,69364.0,69363.0,0.02680601]
[1730446819928,0.18940283,69364.0,69363.0,0.02680601]
[1730446821125,0.15768741,69364.0,69363.0,0.02680601]
[1730446821902,0.15768741,69364.0,69363.0,0.02630601]
[1730446822806,0.15768741,69364.0,69363.0,0.024644]
[1730446823591,0.15768741,69364.0,69363.0,0.001644]
[1730446827403,0.31736949,69364.0,69363.0,0.001644]
[1730446827616,0.50677114,69364.0,69363.0,0.001644]
[1730446827820,0.63654451,69364.0,69363.0,0.001644]
[1730446828029,0.60147114,69364.0,69363.0,0.001644]
[1730446828269,0.58795073,69364.0,69363.0,0.001644]
[1730446828467,0.66755073,69364.0,69363.0,0.001644]
[1730446828889,0.68106476,69364.0,69363.0,0.001644]
[1730446829316,0.81078623,69364.0,69363.0,0.001644]
[1730446829821,0.94924148,69364.0,69363.0,0.001644]
[1730446830027,0.80600598,69364.0,69363.0,0.001644]
[1730446830438,0.99478845,69364.0,69363.0,0.001644]
[1730446830629,0.85079341,69364.0,69363.0,0.001644]
[1730446830952,0.86383575,69364.0,69363.0,0.001644]
[1730446831984,0.002,69362.0,69361.0,0.00130036]
[1730446832209,1.09891852,69362.0,69361.0,0.00130036]
[1730446832436,1.00711023,69362.0,69361.0,0.00130036]
[1730446833070,1.00911023,69362.0,69361.0,0.00130036]
[1730446833489,1.00911023,69362.0,69361.0,0.00080036]
[1730446835202,1.00711023,69362.0,69361.0,0.00080036]
[1730446836695,1.00667506,69362.0,69361.0,0.00080036]
[1730446838188,0.98574554,69362.0,69361.0,0.00080036]
[1730446839038,1.13607014,69362.0,69361.0,0.00080036]
[1730446839218,1.00667506,69362.0,69361.0,0.00080036]
[1730446841184,0.69219776,69362.0,69361.0,0.00080036]
[1730446842568,0.99459284,69362.0,69361.0,0.00080036]
[1730446842768,0.1,69361.0,69354.0,0.00163]
[1730446843089,0.4738096,69355.0,69354.0,0.00163]
[1730446843289,0.86521176,69355.0,69354.0,0.00163]
[1730446844042,0.99455073,69355.0,69354.0,0.00163]
[1730446844257,0.86521176,69355.0,69354.0,0.00163]
[1730446844484,0.86721176,69355.0,69354.0,0.00163]
[1730446844845,1.00568906,69355.0,69354.0,0.00163]
[1730446845891,1.01453176,69355.0,69354.0,0.00263]
[1730446846116,1.02337183,69355.0,69354.0,0.00263]
[1730446846335,0.325694,69351.0,69350.0,0.00163]
[1730446846552,1.00384076,69351.0,69350.0,0.00163]
[1730446846962,1.04653837,69351.0,69350.0,0.00163]
[1730446848001,1.08111909,69351.0,69350.0,0.00163]
[1730446848428,1.23144369,69351.0,69350.0,1e-06]
[1730446848642,1.23144369,69351.0,69344.0,0.21769576]
[1730446848643,0.664906,69345.0,69344.0,0.21769576]
[1730446848838,1.53078819,69345.0,69344.0,0.21769576]
[1730446849017,0.244212,69342.0,69336.0,0.21769576]
[1730446849221,0.54375686,69342.0,69336.0,0.21769576]
[1730446849581,0.54175686,69342.0,69336.0,0.21769576]
[1730446849808,0.68023416,69342.0,69336.0,0.21769576]
[1730446850443,0.68708527,69342.0,69341.0,0.002642]
[1730446852307,0.69408527,69342.0,69341.0,0.003642]
[1730446852635,0.54987327,69342.0,69340.0,0.0009533]
[1730446852845,0.83041187,69341.0,69340.0,0.0009533]
[1730446853832,0.83041187,69341.0,69340.0,0.0019533]
[1730446855265,0.83741187,69341.0,69340.0,0.0019533]
[1730446855645,0.84341187,69341.0,69340.0,0.0029533]
[1730446859285,0.84541187,69341.0,69340.0,0.0029533]
[1730446859860,0.84341187,69341.0,69340.0,0.0029533]
[1730446860483,0.78973666,69341.0,69340.0,0.0029533]
[1730446861764,0.804779,69341.0,69340.0,0.00286942]
[1730446862796,0.244223,69337.0,69336.0,0.21769576]
[1730446863021,0.86283005,69337.0,69336.0,0.21769576]
[1730446863222,0.144231,69333.0,69332.0,0.001632]
[1730446863490,0.52237642,69333.0,69332.0,0.001632]
[1730446864989,0.48033564,69333.0,69332.0,0.001632]
[1730446865400,0.48133564,69333.0,69332.0,0.001632]
[1730446865597,0.61981294,69333.0,69332.0,0.001632]
[1730446866056,0.52316355,69333.0,69332.0,0.001632]
[1730446867126,0.61981294,69333.0,69332.0,0.001632]
[1730446867527,0.66285214,69333.0,69332.0,0.001632]
[1730446867943,0.66085214,69333.0,69332.0,0.001632]
[1730446868348,0.66285214,69333.0,69332.0,0.001632]
[1730446868478,0.67080368,69333.0,69332.0,0.001632]
[1730446868689,0.66085214,69333.0,69332.0,0.001632]
[1730446869085,0.66285214,69333.0,69332.0,0.001632]
[1730446870242,0.61981294,69333.0,69332.0,0.001632]
[1730446872319,0.87544732,69333.0,69332.0,0.001632]
[1730446872771,0.87544732,69333.0,69330.0,0.001632]
[1730446872772,0.63456693,69333.0,69330.0,0.001632]
[1730446873003,0.244235,69331.0,69330.0,0.001632]
[1730446873211,0.54167524,69331.0,69330.0,0.001632]
[1730446874929,0.54267524,69331.0,69330.0,0.001632]
[1730446875988,0.54367524,69331.0,69330.0,0.001632]
[1730446876107,0.68215254,69331.0,69330.0,0.001632]
[1730446876705,0.68231318,69331.0,69330.0,0.001632]
[1730446876925,0.69735552,69331.0,69330.0,0.001632]
[1730446877461,0.74014435,69331.0,69330.0,0.001632]
[1730446878070,0.42042297,69331.0,69330.0,0.001632]
[1730446878299,0.42042297,69331.0,69330.0,0.083932]
[1730446878479,0.50665513,69331.0,69330.0,0.083932]
[1730446879403,0.50665513,69331.0,69330.0,0.001632]
[1730446879404,0.42042297,69331.0,69330.0,0.001632]
[1730446880400,0.57104221,69331.0,69330.0,0.001632]
[1730446880613,0.70951951,69331.0,69330.0,0.001632]
[1730446881029,0.60173711,69331.0,69330.0,0.001632]
[1730446881224,0.60180014,69331.0,69330.0,0.001632]
[1730446882410,0.60180014,69331.0,69324.0,0.001632]
[1730446882411,0.1,69330.0,69321.0,0.28605976]
[1730446882632,0.144254,69322.0,69321.0,0.28605976]
[1730446882961,0.144254,69322.0,69321.0,0.0801]
[1730446883165,0.144254,69322.0,69321.0,0.0851]
[1730446883368,0.18740403,69322.0,69321.0,0.0851]
[1730446884434,0.144254,69322.0,69321.0,0.0851]
[1730446884649,0.145254,69322.0,69321.0,0.0801]
[1730446884849,0.146254,69322.0,69321.0,0.0801]
[1730446885270,0.24446972,69322.0,69321.0,0.0801]
[1730446885437,0.30919476,69322.0,69321.0,0.0801]
[1730446886225,0.40388083,69322.0,69321.0,0.0801]
[1730446886479,0.30566511,69322.0,69321.0,0.0801]
[1730446886702,0.21103053,69322.0,69321.0,0.0801]
[1730446887394,0.30572579,69322.0,69321.0,0.0801]
[1730446887972,0.146254,69322.0,69321.0,0.09863499]
[1730446888175,0.23265675,69322.0,69321.0,0.09863499]
[1730446888378,0.41344043,69322.0,69321.0,0.09863499]
[1730446890004,0.52153298,69322.0,69321.0,0.09863499]
[1730446890425,0.41344043,69322.0,69321.0,0.09863499]
[1730446890817,0.51344043,69322.0,69321.0,0.01853499]
[1730446891245,0.244256,69321.0,69320.0,0.092]
[1730446891450,0.53573529,69321.0,69320.0,0.092]
[1730446891669,0.53573529,69321.0,69320.0,0.11053499]
[1730446892545,0.43673529,69321.0,69320.0,0.11053499]
[1730446892754,0.29247929,69321.0,69320.0,0.11553499]
[1730446892982,0.29247929,69321.0,69320.0,0.33559299]
[1730446892983,0.16047383,69321.0,69320.0,0.33559299]
[1730446893171,0.10919204,69321.0,69320.0,0.33559299]
[1730446893376,0.26866587,69321.0,69320.0,0.33559299]
[1730446893921,0.26866587,69321.0,69320.0,0.19133499]
[1730446893922,0.26966587,69321.0,69320.0,0.19133499]
[1730446894072,0.24803331,69321.0,69320.0,0.19133499]
[1730446895285,0.24803331,69321.0,69320.0,0.19129225]
[1730446895577,0.30572983,69321.0,69320.0,0.19129225]
[1730446898356,0.40482222,69321.0,69320.0,0.19129225]
[1730446899116,0.51301426,69321.0,69320.0,0.02353499]
[1730446899230,0.40482222,69321.0,69320.0,0.02353499]
[1730446899844,0.4051253,69321.0,69320.0,0.02353499]
[1730446900779,0.4051253,69321.0,69320.0,0.005]
[1730446901679,0.4051253,69321.0,69320.0,0.02351808]
[1730446901899,0.4051253,69321.0,69320.0,0.005]
[1730446902111,0.4051253,69321.0,69320.0,0.02351808]
[1730446902317,0.4051253,69321.0,69320.0,0.005]
[1730446902544,0.4051253,69321.0,69320.0,0.02351808]
[1730446902752,0.4051253,69321.0,69320.0,0.005]
[1730446905969,0.40513443,69321.0,69320.0,0.02516208]
[1730446914036,0.4051503,69321.0,69320.0,0.02516208]
[1730446915783,0.4059723,69321.0,69320.0,0.02516208]
[1730446916876,0.4059723,69321.0,69320.0,0.02016208]
[1730446917286,0.4059723,69321.0,69320.0,0.001644]
[1730446917494,0.64442755,69321.0,69320.0,0.001644]
[1730446917693,0.72472755,69321.0,69320.0,0.001644]
[1730446918252,0.76759823,69321.0,69320.0,0.001644]
[1730446919122,0.76659823,69321.0,69320.0,0.001644]
[1730446919323,0.76559823,69321.0,69320.0,0.001644]
[1730446919605,0.76659823,69321.0,69320.0,0.001644]
[1730446920207,0.76559823,69321.0,69320.0,0.001644]
[1730446920643,0.76659823,69321.0,69320.0,0.001644]
[1730446921087,0.77564584,69321.0,69320.0,0.001644]
[1730446921272,0.77664584,69321.0,69320.0,0.001644]
[1730446921697,0.44975059,69321.0,69320.0,0.001644]
[1730446921815,0.40682939,69321.0,69320.0,0.001644]
[1730446922014,0.40682939,69321.0,69320.0,0.02026899]
[1730446922229,0.53665411,69321.0,69320.0,0.02026899]
[1730446922636,0.40682939,69321.0,69320.0,0.02026899]
[1730446922907,0.52132261,69321.0,69320.0,0.02026899]
[1730446924201,0.65114187,69321.0,69320.0,0.02026899]
[1730446924406,0.65114041,69321.0,69320.0,0.02026899]
[1730446925490,0.52132261,69321.0,69320.0,0.02026899]
[1730446925700,0.65114041,69321.0,69320.0,0.02026899]
[1730446925904,0.52132261,69321.0,69320.0,0.001644]
[1730446926513,0.52130671,69321.0,69320.0,0.001644]
[1730446927136,0.52130671,69321.0,69320.0,0.02032182]
[1730446927378,0.52130671,69321.0,69320.0,0.001644]
[1730446927583,0.52130671,69321.0,69320.0,0.02032182]
[1730446927792,0.52130671,69321.0,69320.0,0.001644]
[1730446928001,0.52130671,69321.0,69320.0,0.02034527]
[1730446928204,0.52130671,69321.0,69320.0,0.001644]
[1730446928418,0.52130671,69321.0,69320.0,0.02034527]
[1730446928616,0.52130671,69321.0,69320.0,0.001644]
[1730446928828,0.52130671,69321.0,69320.0,0.02034527]
[1730446929060,0.52130671,69321.0,69320.0,0.001644]
[1730446929270,0.52130671,69321.0,69320.0,0.02034527]
[1730446931106,0.5213012,69321.0,69320.0,0.02034527]
[1730446932140,0.26255198,69321.0,69320.0,0.02034527]
[1730446932617,0.40680798,69321.0,69320.0,0.02034527]
[1730446933345,0.26255198,69321.0,69320.0,0.02034527]
[1730446934175,0.26155198,69321.0,69320.0,0.02034527]
[1730446934347,0.26255198,69321.0,69320.0,0.02034527]
[1730446934829,0.26155198,69321.0,69320.0,0.02034527]
[1730446935161,0.26255198,69321.0,69320.0,0.02034527]
[1730446935571,0.26255198,69321.0,69320.0,0.16960327]
[1730446935572,0.002822,69321.0,69320.0,0.16960327]
[1730446935761,0.08835429,69321.0,69320.0,0.16960327]
[1730446936182,0.08935429,69321.0,69320.0,0.16960327]
[1730446936384,0.24907135,69321.0,69320.0,0.16960327]
[1730446936629,0.24807135,69321.0,69320.0,0.25210327]
[1730446936826,0.16153906,69321.0,69320.0,0.25210327]
[1730446937435,0.16253906,69321.0,69320.0,0.25210327]
[1730446937968,0.16153906,69321.0,69320.0,0.25210327]
[1730446938174,0.16151765,69321.0,69320.0,0.16960327]
[1730446938374,0.16151765,69321.0,69320.0,0.02534527]
[1730446938736,0.16251765,69321.0,69320.0,0.02534527]
[1730446939150,0.16251765,69321.0,69320.0,0.16960327]
[1730446940227,0.21266426,69321.0,69320.0,0.02534527]
[1730446940345,0.16251765,69321.0,69320.0,0.16960327]
[1730446941672,0.16251765,69321.0,69320.0,0.02534527]
[1730446942391,0.002822,69321.0,69320.0,0.02534527]
[1730446942840,0.002822,69321.0,69320.0,0.16960327]
[1730446945146,0.002822,69321.0,69320.0,0.02534527]
[1730446945332,0.12351872,69321.0,69320.0,0.02534527]
[1730446945895,0.4149362,69321.0,69320.0,0.02534527]
[1730446946394,0.30677895,69321.0,69320.0,0.02534527]
[1730446947026,0.41493646,69321.0,69320.0,0.02534527]
[1730446947236,0.30677895,69321.0,69320.0,0.02534527]
[1730446947364,0.41493646,69321.0,69320.0,0.02534527]
[1730446947577,0.30677895,69321.0,69320.0,0.02534527]
[1730446948522,0.27068046,69321.0,69320.0,0.02534527]
[1730446948676,0.24904632,69321.0,69320.0,0.02534527]
[1730446949088,0.16252295,69321.0,69320.0,0.02534527]
[1730446949319,0.002822,69321.0,69320.0,0.02534527]
[1730446949574,0.06771148,69321.0,69320.0,0.02534527]
[1730446950767,0.0677097,69321.0,69320.0,0.16960327]
[1730446951512,0.0677097,69321.0,69320.0,0.26510327]
[1730446953381,0.002822,69321.0,69320.0,0.26510327]
[1730446955715,0.002822,69321.0,69320.0,0.27010327]
[1730446958016,0.002822,69321.0,69320.0,0.17460327]
[1730446963274,0.002822,69321.0,69320.0,0.03034527]
[1730446963478,0.002822,69321.0,69320.0,0.17460327]
[1730446964803,0.002822,69321.0,69320.0,0.16876061]
[1730446965385,0.06769294,69321.0,69320.0,0.02450261]
[1730446967429,0.002822,69321.0,69320.0,0.02450261]
[1730446967669,0.002822,69321.0,69320.0,0.16876061]
[1730446968230,0.002822,69321.0,69320.0,0.02450261]
[1730446969241,0.16253773,69321.0,69320.0,0.02450261]
[1730446971362,0.24903232,69321.0,69320.0,0.02450261]
[1730446975552,0.30679373,69321.0,69320.0,0.01950261]
[1730446975752,0.30679373,69321.0,69320.0,0.23719837]
[1730446975954,0.30679373,69321.0,69320.0,0.01950261]
[1730446978114,0.41491197,69321.0,69320.0,0.01950261]
[1730446978982,0.41513566,69321.0,69320.0,0.01950261]
[1730446979304,0.48549933,69321.0,69320.0,0.01950261]
[1730446979953,0.41513566,69321.0,69320.0,0.01950261]
[1730446980165,0.30689787,69321.0,69320.0,0.01950261]
[1730446980373,0.16264187,69321.0,69320.0,0.01950261]
[1730446980951,0.30689787,69321.0,69320.0,0.01950261]
[1730446981935,0.16264187,69321.0,69320.0,0.01950261]
[1730446982387,0.2352204,69321.0,69320.0,0.01950261]
[1730446982580,0.16269218,69321.0,69320.0,0.02450261]
[1730446983394,0.16269218,69321.0,69320.0,0.16876061]
[1730446984636,0.11109445,69321.0,69320.0,0.16876061]
[1730446984843,0.27096463,69321.0,69320.0,0.16876061]
[1730446985199,0.06778143,69321.0,69320.0,0.30721586]
[1730446985400,0.002822,69321.0,69320.0,0.50871586]
[1730446985630,0.002822,69321.0,69320.0,0.51571586]
[1730446986070,0.002822,69321.0,69320.0,0.51371586]
[1730446986240,0.001822,69321.0,69320.0,0.51371586]
[1730446986601,0.002822,69321.0,69320.0,0.51371586]
[1730446986998,0.000822,69321.0,69320.0,0.50871586]
[1730446987426,0.002822,69321.0,69320.0,0.50871586]
[1730446987586,0.001822,69321.0,69320.0,0.50871586]
[1730446987991,0.002822,69321.0,69320.0,0.50871586]
[1730446988236,0.001822,69321.0,69320.0,0.50871586]
[1730446989242,0.002822,69321.0,69320.0,0.50871586]
[1730446989927,0.002822,69321.0,69320.0,0.33021586]
[1730446990811,0.002822,69321.0,69320.0,0.18595786]
[1730446991001,0.002822,69321.0,69320.0,0.33021586]
[1730446999303,0.002822,69321.0,69320.0,0.18595786]
[1730446999515,0.002822,69321.0,69320.0,0.33021586]
[1730446999704,0.002822,69321.0,69320.0,0.18595786]
[1730446999929,0.002822,69321.0,69320.0,0.33021586]
[1730447009753,0.002822,69321.0,69320.0,0.32619472]
[1730447012802,0.002822,69321.0,69320.0,0.54389048]
[1730447013036,0.002822,69321.0,69320.0,0.50359472]
[1730447014791,0.002822,69321.0,69320.0,0.32619472]
[1730447016249,0.002822,69321.0,69320.0,0.18193672]
[1730447016434,0.002822,69321.0,69320.0,0.32619472]
[1730447016580,0.147078,69321.0,69320.0,0.04348147]
[1730447017031,0.147078,69321.0,69320.0,0.034644]
[1730447017032,0.19033247,69321.0,69320.0,0.034644]
[1730447017975,0.19033247,69321.0,69320.0,0.04348147]
[1730447019882,0.19034043,69321.0,69320.0,0.04348147]
[1730447023269,0.147078,69321.0,69320.0,0.04348147]
[1730447024207,0.147078,69321.0,69320.0,0.02048147]
[1730447025358,0.26338662,69321.0,69320.0,0.01548147]
[1730447025616,0.26338662,69321.0,69308.0,0.001632]
[1730447025617,0.144279,69310.0,69309.0,0.005]
[1730447025835,0.144279,69310.0,69308.0,0.001632]
[1730447025836,0.240381,69309.0,69308.0,0.21932776]
[1730447026034,0.83907321,69309.0,69308.0,0.001632]
[1730447026704,0.83907321,69309.0,69305.0,0.006642]
[1730447026705,0.88364619,69309.0,69305.0,0.006642]
[1730447026912,0.4169293,69306.0,69305.0,0.006642]
[1730447027108,0.63302109,69306.0,69305.0,0.006642]
[1730447027315,0.76265568,69306.0,69305.0,0.006642]
[1730447027547,0.85830976,69306.0,69305.0,0.006642]
[1730447027946,0.85930976,69306.0,69305.0,0.006642]
[1730447028205,0.62519016,69306.0,69305.0,0.006642]
[1730447028413,0.49555557,69306.0,69305.0,0.006642]
[1730447028917,0.49520226,69306.0,69305.0,0.006642]
[1730447029536,0.58152689,69306.0,69305.0,0.006642]
[1730447029758,0.49520226,69306.0,69305.0,0.006642]
[1730447030044,0.47427192,69306.0,69305.0,0.006642]
[1730447030441,0.25979462,69306.0,69305.0,0.006642]
[1730447030648,0.15979462,69306.0,69305.0,0.011642]
[1730447035696,0.01550762,69306.0,69305.0,0.011642]
[1730447035887,0.002,69306.0,69305.0,0.011642]
[1730447036035,0.01546758,69306.0,69305.0,0.011642]
[1730447036662,0.01546758,69306.0,69305.0,0.155931]
[1730447037716,0.01546758,69306.0,69305.0,0.011642]
[1730447037923,0.01546758,69306.0,69305.0,0.160931]
[1730447038045,0.01546758,69306.0,69305.0,0.18681654]
[1730447038245,0.01546758,69306.0,69305.0,0.1868164]
[1730447039576,0.01546758,69306.0,69305.0,0.183931]
[1730447039804,0.01346758,69306.0,69305.0,0.183931]
[1730447039960,0.01346761,69313.0,69312.0,0.005]
[1730447040387,0.04312813,69318.0,69307.0,0.28857]
[1730447040388,0.04312813,69318.0,69314.0,0.005]
[1730447040598,0.14427,69315.0,69314.0,0.005]
[1730447040876,0.15773746,69315.0,69314.0,0.005]
[1730447041728,0.15873746,69315.0,69314.0,0.005]
[1730447042155,0.15873546,69315.0,69314.0,0.005]
[1730447042326,0.17491348,69315.0,69314.0,0.005]
[1730447043451,0.17491652,69315.0,69314.0,0.005]
[1730447045319,0.35581652,69315.0,69314.0,0.005]
[1730447045520,0.21154852,69315.0,69307.0,0.005]
[1730447045730,0.63088602,69315.0,69314.0,0.005]
[1730447045934,0.64436538,69315.0,69314.0,0.005]
[1730447046339,0.144273,69313.0,69312.0,0.005]
[1730447046523,0.29075417,69313.0,69312.0,0.005]
[1730447047675,0.29175417,69313.0,69312.0,0.005]
[1730447048323,0.29075417,69313.0,69312.0,0.005]
[1730447048477,0.29175417,69313.0,69312.0,0.005]
[1730447049161,0.29176159,69313.0,69312.0,0.005]
[1730447052272,0.15875978,69313.0,69312.0,0.005]
[1730447052480,0.15875978,69313.0,69312.0,0.0045]
[1730447052690,0.145273,69313.0,69312.0,0.0045]
[1730447052949,0.15877375,69313.0,69312.0,0.0045]
[1730447053523,0.15777375,69313.0,69312.0,0.0045]
[1730447053923,0.15877375,69313.0,69312.0,0.0045]
[1730447054456,0.15777375,69313.0,69312.0,0.0045]
[1730447054899,0.15877375,69313.0,69312.0,0.0045]
[1730447055528,0.15877375,69313.0,69305.0,0.22433776]
[1730447055529,0.005,69311.0,69307.0,0.167283]
[1730447055736,0.01350075,69310.0,69307.0,0.167283]
[1730447055977,0.01350075,69309.0,69303.0,0.023]
[1730447056198,0.01350075,69308.0,69305.0,0.023]
[1730447056409,0.01350075,69307.0,69305.0,0.023]
[1730447056611,0.01350075,69306.0,69305.0,0.023]
[1730447056810,0.01351783,69306.0,69305.0,0.023]
[1730447059281,0.01451783,69306.0,69305.0,0.023]
[1730447059983,0.001,69306.0,69305.0,0.023]
[1730447060183,0.01452723,69306.0,69305.0,0.023]
[1730447061042,0.01452723,69306.0,69305.0,0.30574425]
[1730447061702,0.01452723,69306.0,69305.0,0.39804425]
[1730447063665,0.01452725,69306.0,69305.0,0.39804425]
[1730447064885,0.01452725,69306.0,69305.0,0.16145525]
[1730447065534,0.001,69306.0,69305.0,0.16145525]
[1730447065851,0.01452782,69306.0,69305.0,0.16145525]
[1730447066494,0.01452782,69306.0,69305.0,0.16309925]
[1730447067392,0.01452832,69306.0,69305.0,0.024644]
[1730447069649,0.15881532,69306.0,69305.0,0.024644]
[1730447070312,0.01452832,69306.0,69305.0,0.024644]
[1730447074452,0.001,69306.0,69305.0,0.024644]
[1730447074670,0.01452825,69306.0,69305.0,0.024644]
[1730447076399,0.15881525,69306.0,69305.0,0.024644]
[1730447077735,0.25591525,69306.0,69305.0,0.024644]
[1730447078612,0.242387,69306.0,69305.0,0.024644]
[1730447078832,0.25591741,69306.0,69305.0,0.024644]
[1730447081868,0.242387,69306.0,69305.0,0.024644]
[1730447082076,0.25592001,69306.0,69305.0,0.024644]
[1730447085311,0.15882164,69306.0,69305.0,0.024644]
[1730447086421,0.145287,69306.0,69305.0,0.024644]
[1730447088423,0.15882276,69306.0,69305.0,0.024644]
[1730447089513,0.145287,69306.0,69305.0,0.024644]
[1730447090181,0.146109,69306.0,69305.0,0.024644]
[1730447095470,0.18940999,69306.0,69305.0,0.024644]
[1730447095673,0.146109,69306.0,69305.0,0.024644]
[1730447102918,0.64604581,69306.0,69305.0,0.001644]
[1730447103121,0.69763877,69306.0,69305.0,0.001644]
[1730447104169,0.69663877,69306.0,69305.0,0.001644]
[1730447105355,0.69649267,69306.0,69305.0,0.001644]
[1730447106188,0.80464289,69306.0,69305.0,0.001644]
[1730447106398,0.80460823,69306.0,69305.0,0.001644]
[1730447108556,0.80460823,69306.0,69305.0,0.073744]
[1730447109162,0.69646028,69306.0,69305.0,0.073744]
[1730447112723,0.69846028,69306.0,69305.0,0.073744]
[1730447113143,0.69646028,69306.0,69305.0,0.073744]
[1730447114685,0.53677308,69306.0,69305.0,0.073744]
[1730447114896,0.69632363,69306.0,69305.0,0.073744]
[1730447115324,0.78276373,69306.0,69305.0,0.073744]
[1730447124059,0.78270516,69306.0,69305.0,0.073744]
[1730447125349,0.53677308,69306.0,69305.0,0.073744]
[1730447125572,0.78270914,69306.0,69305.0,0.073744]
[1730447125969,0.79622317,69306.0,69305.0,0.073744]
[1730447126586,0.79622772,69306.0,69305.0,0.073744]
[1730447129062,0.81783403,69306.0,69305.0,0.073744]
[1730447129284,0.81784193,69306.0,69305.0,0.073744]
[1730447130834,0.95629718,69306.0,69305.0,0.073744]
[1730447131040,0.94995007,69306.0,69305.0,0.073744]
[1730447131253,0.52669445,69295.0,69294.0,1.0]
[1730447131457,0.60505123,69295.0,69294.0,1.0]
[1730447131591,0.69977264,69295.0,69294.0,1.0]
[1730447132444,1.15762015,69295.0,69294.0,0.942274]
[1730447132650,0.94692439,69295.0,69294.0,0.29308045]
[1730447132866,1.07186771,69295.0,69294.0,0.26421745]
[1730447133778,1.07186771,69295.0,69294.0,0.17762845]
[1730447133779,1.07286771,69295.0,69294.0,0.17762845]
[1730447133952,1.08427982,69295.0,69294.0,0.11990245]
[1730447134223,1.09879705,69295.0,69294.0,0.09417717]
[1730447134413,1.09879705,69295.0,69273.0,0.21769576]
[1730447134414,0.259345,69278.0,69273.0,0.21769576]
[1730447134672,0.68668571,69278.0,69273.0,0.21769576]
[1730447135257,0.68650409,69278.0,69273.0,0.21769576]
[1730447135857,0.96343664,69278.0,69273.0,0.21769576]
[1730447136086,0.96343664,69278.0,69271.0,0.001632]
[1730447136285,0.811062,69278.0,69271.0,0.001632]
[1730447136484,0.813062,69278.0,69271.0,0.001632]
[1730447136704,0.96536261,69278.0,69271.0,0.001632]
[1730447137025,0.96436261,69278.0,69271.0,0.001632]
[1730447137253,0.8697616,69278.0,69271.0,0.001632]
[1730447137608,0.8757616,69278.0,69277.0,0.002644]
[1730447138040,0.8717616,69278.0,69277.0,0.001644]
[1730447138243,0.804062,69278.0,69277.0,0.001644]
[1730447138699,0.811062,69278.0,69277.0,0.001644]
[1730447139333,0.813062,69278.0,69277.0,0.001644]
[1730447140008,0.820062,69278.0,69277.0,0.001644]
[1730447140222,0.91674645,69278.0,69277.0,0.001644]
[1730447140438,0.820062,69278.0,69277.0,0.001644]
[1730447140797,0.83141029,69278.0,69277.0,0.001644]
[1730447141178,0.509358,69272.0,69271.0,0.001632]
[1730447141379,1.01238215,69272.0,69271.0,0.001632]
[1730447141616,1.05546341,69272.0,69271.0,0.001632]
[1730447141825,1.05546341,69272.0,69251.0,0.21937765]
[1730447141826,0.77726145,69263.0,69258.0,0.21769576]
[1730447142022,0.94908798,69263.0,69258.0,0.21769576]
[1730447142250,1.07788011,69263.0,69258.0,0.21769576]
[1730447142500,1.08288011,69263.0,69251.0,0.21932776]
[1730447143060,0.79950883,69263.0,69251.0,0.21932776]
[1730447143259,0.254377,69263.0,69259.0,0.09668445]
[1730447143460,0.254377,69263.0,69257.0,0.0777]
[1730447143862,0.26781931,69263.0,69257.0,0.0777]
[1730447144060,0.257377,69263.0,69257.0,0.0777]
[1730447144768,0.254377,69263.0,69257.0,0.0777]
[1730447144976,0.257377,69263.0,69257.0,0.0777]
[1730447145091,0.2790384,69263.0,69257.0,0.0777]
[1730447146158,0.2790384,69263.0,69253.0,0.098]
[1730447146159,0.2790384,69263.0,69251.0,0.21932776]
[1730447146320,0.41749365,69263.0,69251.0,0.21932776]
[1730447146541,0.49529365,69263.0,69251.0,0.21932776]
[1730447146752,0.50029365,69263.0,69251.0,0.21932776]
[1730447147859,0.49729365,69263.0,69251.0,0.21932776]